fUST/lending_fUST_20260505
["ID","MTS","AMOUNT","RATE_DAILY","PERIOD"]
[421625612,1777990238000,-500.0,0.00011759,2]
[421625604,1777990238000,-500.0,0.00011759,2]
[421625631,1777990238000,-10617.68328871,0.0001176,2]
[421625628,1777990238000,-500.0,0.00011759,2]
[421625629,1777990238000,-45846.62447947,0.0001176,2]
[421625626,1777990238000,-500.0,0.00011759,2]
[421625623,1777990238000,-500.0,0.00011759,2]
[421625619,1777990238000,-500.0,0.00011759,2]
[421625621,1777990238000,-433.76604668,0.00011759,2]
[421625617,1777990238000,-500.0,0.00011759,2]
[421625625,1777990238000,-500.0,0.00011759,2]
[421625624,1777990238000,-500.0,0.00011759,2]
[421625620,1777990238000,-500.0,0.00011759,2]
[421625616,1777990238000,-500.0,0.00011759,2]
[421625627,1777990238000,-500.0,0.00011759,2]
[421625615,1777990238000,-500.0,0.00011759,2]
[421625605,1777990238000,-500.0,0.00011759,2]
[421625603,1777990238000,-318.79840182,0.00011759,2]
[421625613,1777990238000,-500.0,0.00011759,2]
[421625610,1777990238000,-500.0,0.00011759,2]
[421625622,1777990238000,-620.71467947,0.00011759,2]
[421625608,1777990238000,-500.0,0.00011759,2]
[421625606,1777990238000,-500.0,0.00011759,2]
[421625609,1777990238000,-480.26392943,0.00011759,2]
[421625611,1777990238000,-500.0,0.00011759,2]
[421625630,1777990238000,-943.065,0.0001176,2]
[421625607,1777990238000,-500.0,0.00011759,2]
[421625618,1777990238000,-500.0,0.00011759,2]
[421625614,1777990238000,-165.75604121,0.00011759,2]
[421625632,1777990239000,-2379.00998034,0.0001176,2]
[421625638,1777990240000,-533.21178026,0.0001176,2]
[421625639,1777990241000,-1806.30804927,0.0001176,2]
[421625681,1777990243000,-585.75366434,0.00011642,2]
[421625683,1777990243000,-47833.17331674,0.0001176,2]
[421625682,1777990243000,-4414.24633566,0.00011642,2]
[421625732,1777990246000,-37543.87127873,0.0001176,2]
[421625729,1777990246000,-355.3,0.0001176,2]
[421625781,1777990636000,5002.3,0.00020822,120]
[421625782,1777990711000,1444.0,0.00020329,120]
[421625792,1777990756000,-300.0,0.00010106,2]
[421625784,1777990756000,-553.0,9.519e-05,2]
[421625785,1777990756000,-5000.0,9.615e-05,2]
[421625783,1777990756000,-337.843633,9.519e-05,2]
[421625787,1777990756000,-409.43553656,9.86e-05,2]
[421625786,1777990756000,-957.02317551,9.712e-05,2]
[421625788,1777990756000,-300.0,0.00010106,2]
[421625789,1777990756000,-300.0,0.00010106,2]
[421625790,1777990756000,-300.0,0.00010106,2]
[421625793,1777990756000,-300.0,0.00010106,2]
[421625795,1777990756000,-300.0,0.00010106,2]
[421625794,1777990756000,-300.0,0.00010106,2]
[421625796,1777990756000,-300.0,0.00010106,2]
[421625803,1777990756000,-600.0,0.00010311,2]
[421625797,1777990756000,-300.0,0.00010106,2]
[421625799,1777990756000,-300.0,0.00010106,2]
[421625798,1777990756000,-300.0,0.00010106,2]
[421625800,1777990756000,-300.0,0.00010106,2]
[421625802,1777990756000,-300.0,0.00010106,2]
[421625801,1777990756000,-300.0,0.00010106,2]
[421625791,1777990756000,-300.0,0.00010106,2]
[421625804,1777990757000,-720.0,0.00011342,2]
[421625807,1777990757000,-222.65152034,0.00011559,2]
[421625805,1777990757000,-167.31322766,0.0001141,2]
[421625806,1777990757000,-183.784,0.00011525,2]
[421625808,1777990757000,-223.49525337,0.000116,2]
[421625810,1777990757000,-368.80693472,0.000116,2]
[421625811,1777990757000,-342.80717382,0.000116,2]
[421625812,1777990757000,-25123.7145048,0.00011658,2]
[421625809,1777990757000,-385.12504022,0.000116,2]
[421625813,1777990829000,4948.66707239,8.01e-05,2]
[421626068,1777991433000,-568.0,0.00010524,2]
[421626064,1777991433000,-698.15084257,0.00010524,2]
[421626062,1777991433000,-152.0,9.924e-05,7]
[421626072,1777991433000,-1182.25284781,0.00010911,2]
[421626066,1777991433000,-93.2716965,0.00010524,2]
[421626080,1777991433000,-8498.0636951,0.00011111,2]
[421626078,1777991433000,-1769.7013954,0.00011111,2]
[421626076,1777991433000,-2275.89404496,0.00010911,2]
[421626074,1777991433000,-1290.67792821,0.00010911,2]
[421626082,1777991433000,-8304.69129619,0.00011311,2]
[421626070,1777991433000,-407.79504723,0.00010623,2]
[421626174,1777991439000,-103.59344336,0.00011324,30]
[421626172,1777991439000,-3342.37075628,0.00011311,2]
[421626177,1777991439000,-561.37571463,0.00011456,2]
[421626175,1777991439000,-176.96735582,0.000114,2]
[421626176,1777991439000,-8875.0,0.00011455,2]
[421626173,1777991439000,-48.40655664,0.00011324,30]
[421626189,1777991439000,-17029.61837819,0.00011457,2]
[421626180,1777991439000,-500.0,0.00011456,2]
[421626178,1777991439000,-500.0,0.00011456,2]
[421626188,1777991439000,-500.0,0.00011456,2]
[421626181,1777991439000,-500.0,0.00011456,2]
[421626186,1777991439000,-500.0,0.00011456,2]
[421626185,1777991439000,-500.0,0.00011456,2]
[421626192,1777991439000,-23.79043134,0.00011457,2]
[421626193,1777991439000,-2463.48621564,0.00011457,2]
[421626194,1777991439000,-2536.51378436,0.00011457,2]
[421626190,1777991439000,-500.0,0.00011456,2]
[421626191,1777991439000,-429.18681717,0.00011456,2]
[421626184,1777991439000,-500.0,0.00011456,2]
[421626182,1777991439000,-500.0,0.00011456,2]
[421626179,1777991439000,-500.0,0.00011456,2]
[421626187,1777991439000,-500.0,0.00011456,2]
[421626183,1777991439000,-500.0,0.00011456,2]
[421626220,1777991441000,-500.0,0.00011456,2]
[421626211,1777991441000,-500.0,0.00011456,2]
[421626214,1777991441000,-480.94798271,0.00011456,2]
[421626215,1777991441000,-500.0,0.00011456,2]
[421626213,1777991441000,-19.05201729,0.00011456,2]
[421626212,1777991441000,-500.0,0.00011456,2]
[421626218,1777991441000,-500.0,0.00011456,2]
[421626216,1777991441000,-277.48872994,0.00011456,2]
[421626223,1777991441000,-331.70727849,0.00011456,2]
[421626219,1777991441000,-500.0,0.00011456,2]
[421626217,1777991441000,-222.51127006,0.00011456,2]
[421626221,1777991441000,-500.0,0.00011456,2]
[421626222,1777991441000,-500.0,0.00011456,2]
[421626224,1777991441000,-500.0,0.00011456,2]
[421626225,1777991441000,-4354.80017299,0.00011457,2]
[421626226,1777991441000,-523.75236559,0.00011457,2]
[421626227,1777991441000,-2619.62738479,0.00011457,2]
[421626235,1777991444000,-3256.23330091,0.00011457,2]
[421626237,1777991444000,-5808.49999837,0.00011457,2]
[421626239,1777991444000,-813.5,0.00011457,2]
[421626236,1777991444000,-285.0,0.00011457,2]
[421626238,1777991444000,-468.942,0.00011457,2]
[421626234,1777991444000,-1179.67946753,0.00011457,2]
[421626253,1777991447000,-423.55549478,0.00011457,2]
[421626250,1777991447000,-276.5150003,0.00011457,2]
[421626252,1777991447000,-39923.21132233,0.00011457,2]
[421626251,1777991447000,-63614.1874677,0.00011457,2]
[421626254,1777991447000,-12025.3210036,0.00011457,2]
[421626259,1777991447000,-6194.116812,0.00011712,2]
[421626257,1777991447000,-731.0138524,0.0001154,2]
[421626260,1777991447000,-25356.49014152,0.0001176,2]
[421626258,1777991447000,-1173.0099577,0.00011712,2]
[421626255,1777991447000,-268.7174143,0.00011512,2]
[421626256,1777991447000,-455.7334323,0.00011533,2]
[421626266,1777991474000,-2363.90932979,0.0001,2]
[421626267,1777991476000,24312.17443257,0.0001,30]
[421626268,1777991494000,1444.0,0.00020329,120]
[421626271,1777991669000,166.25324459,0.00016702,120]
[421626313,1777992276000,1444.0,0.00020329,120]
[421626439,1777992631000,-300.0,0.00010199,2]
[421626433,1777992631000,-300.0,0.00010199,2]
[421626441,1777992631000,-300.0,0.00010199,2]
[421626427,1777992631000,-300.0,0.00010199,2]
[421626443,1777992631000,-300.0,0.00010199,2]
[421626431,1777992631000,-300.0,0.00010199,2]
[421626445,1777992631000,-300.0,0.00010199,2]
[421626429,1777992631000,-300.0,0.00010199,2]
[421626423,1777992631000,-300.0,0.00010199,2]
[421626414,1777992631000,-288.0,9.203e-05,2]
[421626420,1777992631000,-23249.28841122,0.0001,2]
[421626416,1777992631000,-416.59355928,9.398e-05,2]
[421626419,1777992631000,-29694.0,9.5e-05,2]
[421626412,1777992631000,-3571.49933287,9.111e-05,2]
[421626410,1777992631000,-1428.50066713,9.111e-05,2]
[421626435,1777992631000,-300.0,0.00010199,2]
[421626425,1777992631000,-300.0,0.00010199,2]
[421626447,1777992631000,-300.0,0.00010199,2]
[421626482,1777992631000,-500.0,0.00011299,2]
[421626437,1777992631000,-300.0,0.00010199,2]
[421626478,1777992631000,-500.0,0.00011299,2]
[421626449,1777992631000,-300.0,0.00010199,2]
[421626480,1777992631000,-500.0,0.00011299,2]
[421626476,1777992631000,-500.0,0.00011299,2]
[421626474,1777992631000,-500.0,0.00011299,2]
[421626461,1777992631000,-155.0,0.00011299,2]
[421626464,1777992631000,-500.0,0.00011299,2]
[421626463,1777992631000,-585.02875205,0.00011299,2]
[421626466,1777992631000,-500.0,0.00011299,2]
[421626459,1777992631000,-500.0,0.00011299,2]
[421626470,1777992631000,-268.83807854,0.00011299,2]
[421626468,1777992631000,-500.0,0.00011299,2]
[421626457,1777992631000,-176.81790084,0.000112,2]
[421626453,1777992631000,-296.62197707,0.00010832,2]
[421626455,1777992631000,-250.16670129,0.00011,2]
[421626451,1777992631000,-300.0,0.00010199,2]
[421626472,1777992631000,-500.0,0.00011299,2]
[421626499,1777992632000,-500.0,0.00011299,2]
[421626501,1777992632000,-500.0,0.00011299,2]
[421626502,1777992632000,-500.0,0.00011299,2]
[421626485,1777992632000,-500.0,0.00011299,2]
[421626497,1777992632000,-500.0,0.00011299,2]
[421626484,1777992632000,-500.0,0.00011299,2]
[421626489,1777992632000,-500.0,0.00011299,2]
[421626487,1777992632000,-500.0,0.00011299,2]
[421626495,1777992632000,-500.0,0.00011299,2]
[421626493,1777992632000,-500.0,0.00011299,2]
[421626491,1777992632000,-199.12979256,0.00011299,2]
[421626504,1777992632000,-500.0,0.00011299,2]
[421626507,1777992632000,-500.0,0.00011299,2]
[421626514,1777992632000,-268.64745184,0.000113,2]
[421626517,1777992632000,-24328.1597128,0.000113,2]
[421626548,1777992632000,-997.32222237,0.000113,2]
[421626546,1777992632000,-1078.08916142,0.000113,2]
[421626543,1777992632000,-9354.59888696,0.000113,2]
[421626541,1777992632000,-276.36,0.000113,2]
[421626512,1777992632000,-500.0,0.00011299,2]
[421626511,1777992632000,-500.0,0.00011299,2]
[421626506,1777992632000,-500.0,0.00011299,2]
[421626508,1777992632000,-500.0,0.00011299,2]
[421626509,1777992632000,-500.0,0.00011299,2]
[421626516,1777992632000,-509.12708047,0.000113,2]
[421626513,1777992632000,-200.0,0.00011299,2]
[421626510,1777992632000,-500.0,0.00011299,2]
[421626515,1777992632000,-498.58196333,0.000113,2]
[421626618,1777992637000,-500.0,0.00011298,2]
[421626620,1777992637000,-500.0,0.00011298,2]
[421626621,1777992637000,-500.0,0.00011298,2]
[421626622,1777992637000,-500.0,0.00011298,2]
[421626617,1777992637000,-500.0,0.00011298,2]
[421626619,1777992637000,-500.0,0.00011298,2]
[421626653,1777992638000,-500.0,0.00011298,2]
[421626651,1777992638000,-500.0,0.00011298,2]
[421626663,1777992638000,-500.0,0.00011298,2]
[421626647,1777992638000,-500.0,0.00011298,2]
[421626652,1777992638000,-500.0,0.00011298,2]
[421626656,1777992638000,-500.0,0.00011298,2]
[421626648,1777992638000,-500.0,0.00011298,2]
[421626662,1777992638000,-500.0,0.00011298,2]
[421626659,1777992638000,-500.0,0.00011298,2]
[421626657,1777992638000,-500.0,0.00011298,2]
[421626654,1777992638000,-500.0,0.00011298,2]
[421626661,1777992638000,-601.12392685,0.00011298,2]
[421626658,1777992638000,-500.0,0.00011298,2]
[421626650,1777992638000,-500.0,0.00011298,2]
[421626664,1777992638000,-500.0,0.00011298,2]
[421626666,1777992638000,-500.0,0.00011298,2]
[421626667,1777992638000,-500.0,0.00011298,2]
[421626665,1777992638000,-500.0,0.00011298,2]
[421626668,1777992638000,-500.0,0.00011298,2]
[421626655,1777992638000,-500.0,0.00011298,2]
[421626660,1777992638000,-500.0,0.00011298,2]
[421626642,1777992638000,-500.0,0.00011298,2]
[421626641,1777992638000,-500.0,0.00011298,2]
[421626623,1777992638000,-329.33127076,0.00011298,2]
[421626626,1777992638000,-152.25867264,0.00011298,2]
[421626625,1777992638000,-219.27027336,0.00011298,2]
[421626627,1777992638000,-500.0,0.00011298,2]
[421626624,1777992638000,-293.96081591,0.00011298,2]
[421626628,1777992638000,-500.0,0.00011298,2]
[421626639,1777992638000,-500.0,0.00011298,2]
[421626630,1777992638000,-500.0,0.00011298,2]
[421626629,1777992638000,-423.39035899,0.00011298,2]
[421626646,1777992638000,-500.0,0.00011298,2]
[421626631,1777992638000,-500.0,0.00011298,2]
[421626634,1777992638000,-500.0,0.00011298,2]
[421626635,1777992638000,-500.0,0.00011298,2]
[421626637,1777992638000,-500.0,0.00011298,2]
[421626636,1777992638000,-500.0,0.00011298,2]
[421626638,1777992638000,-500.0,0.00011298,2]
[421626640,1777992638000,-500.0,0.00011298,2]
[421626670,1777992638000,-500.0,0.00011298,2]
[421626643,1777992638000,-500.0,0.00011298,2]
[421626645,1777992638000,-500.0,0.00011298,2]
[421626632,1777992638000,-500.0,0.00011298,2]
[421626669,1777992638000,-319.50141109,0.00011298,2]
[421626644,1777992638000,-500.0,0.00011298,2]
[421626672,1777992638000,-500.0,0.00011298,2]
[421626695,1777992638000,-268206.67316655,0.000113,2]
[421626700,1777992638000,-20858.71996801,0.000114,2]
[421626704,1777992638000,-432.2997912,0.00011484,2]
[421626710,1777992638000,-247.34485384,0.000116,2]
[421626708,1777992638000,-186.99204805,0.000116,2]
[421626702,1777992638000,-155.0,0.00011456,2]
[421626701,1777992638000,-537.6845,0.00011447,2]
[421626711,1777992638000,-160.9110721,0.000116,2]
[421626699,1777992638000,-5014.15158471,0.000114,2]
[421626703,1777992638000,-9949.6868055,0.00011484,2]
[421626705,1777992638000,-1690.4811933,0.00011484,2]
[421626709,1777992638000,-268.43397098,0.000116,2]
[421626707,1777992638000,-500.0,0.00011573,2]
[421626706,1777992638000,-151.0,0.00011545,2]
[421626712,1777992638000,-155.0,0.00011647,2]
[421626714,1777992638000,-500.0,0.0001176,2]
[421626717,1777992638000,-5675.334293,0.0001176,2]
[421626715,1777992638000,-1159239.25072222,0.0001176,2]
[421626716,1777992638000,-55051.41121685,0.0001176,2]
[421626713,1777992638000,-600.0,0.00011684,2]
[421626671,1777992638000,-551.24583621,0.00011298,2]
[421626697,1777992638000,-151.0,0.000113,2]
[421626696,1777992638000,-151.0,0.000113,2]
[421626649,1777992638000,-500.0,0.00011298,2]
[421626690,1777992638000,-500.0,0.00011298,2]
[421626673,1777992638000,-500.0,0.00011298,2]
[421626674,1777992638000,-500.0,0.00011298,2]
[421626675,1777992638000,-500.0,0.00011298,2]
[421626676,1777992638000,-500.0,0.00011298,2]
[421626686,1777992638000,-500.0,0.00011298,2]
[421626679,1777992638000,-500.0,0.00011298,2]
[421626685,1777992638000,-500.0,0.00011298,2]
[421626683,1777992638000,-500.0,0.00011298,2]
[421626678,1777992638000,-500.0,0.00011298,2]
[421626677,1777992638000,-500.0,0.00011298,2]
[421626680,1777992638000,-500.0,0.00011298,2]
[421626687,1777992638000,-500.0,0.00011298,2]
[421626693,1777992638000,-65734.33802702,0.000113,2]
[421626682,1777992638000,-500.0,0.00011298,2]
[421626691,1777992638000,-76732.4975105,0.000113,2]
[421626692,1777992638000,-886272.29446735,0.000113,2]
[421626689,1777992638000,-500.0,0.00011298,2]
[421626694,1777992638000,-109804.93935647,0.000113,2]
[421626688,1777992638000,-500.0,0.00011298,2]
[421626684,1777992638000,-500.0,0.00011298,2]
[421626681,1777992638000,-500.0,0.00011298,2]
[421626698,1777992638000,-491.58039995,0.00011398,2]
[421626719,1777992640000,-869.9715,0.0001176,2]
[421626718,1777992640000,-500.0,0.00011298,2]
[421626898,1777992646000,-83534.60501951,0.0001176,2]
[421626897,1777992646000,-7039.50333573,0.0001176,2]
[421626913,1777992723000,152.5,8.01e-05,2]
[421626922,1777993059000,1444.0,0.00020329,120]
[421626927,1777993350000,484.95,0.00020821,120]
[421627027,1777993833000,-972.38596994,0.00010612,2]
[421627026,1777993833000,-300.0,0.00010611,2]
[421627023,1777993833000,-220.91620584,0.00010111,2]
[421627019,1777993833000,-5000.0,0.0001001,2]
[421627021,1777993833000,-182.20240826,0.00010111,2]
[421627030,1777993833000,-3548.00083649,0.00010612,2]
[421627050,1777993840000,-327.55422988,0.00010612,2]
[421627051,1777993841000,1444.0,0.00020329,120]
[421627125,1777993843000,-200.0,0.00011822,2]
[421627123,1777993843000,-257.0,0.000118,2]
[421627114,1777993843000,-697.3282149,0.00010959,2]
[421627113,1777993843000,-300.0,0.00010824,2]
[421627106,1777993843000,-300.0,0.00010824,2]
[421627109,1777993843000,-300.0,0.00010824,2]
[421627107,1777993843000,-300.0,0.00010824,2]
[421627108,1777993843000,-300.0,0.00010824,2]
[421627112,1777993843000,-300.0,0.00010824,2]
[421627111,1777993843000,-300.0,0.00010824,2]
[421627105,1777993843000,-300.0,0.00010824,2]
[421627104,1777993843000,-300.0,0.00010824,2]
[421627103,1777993843000,-300.0,0.00010824,2]
[421627102,1777993843000,-300.0,0.00010824,2]
[421627101,1777993843000,-300.0,0.00010824,2]
[421627099,1777993843000,-300.0,0.00010824,2]
[421627097,1777993843000,-456.0064541,0.00010739,2]
[421627100,1777993843000,-300.0,0.00010824,2]
[421627098,1777993843000,-325.2240776,0.00010739,2]
[421627096,1777993843000,-10.09926953,0.00010612,2]
[421627110,1777993843000,-300.0,0.00010824,2]
[421627126,1777993843000,-200.0,0.00011822,2]
[421627115,1777993843000,-600.0,0.00011039,2]
[421627116,1777993843000,-441.8153947,0.00011561,2]
[421627140,1777993843000,-305.33746736,0.00012,2]
[421627133,1777993843000,-173.75,0.00011894,2]
[421627132,1777993843000,-2074.57240429,0.00011877,2]
[421627130,1777993843000,-200.0,0.00011822,2]
[421627131,1777993843000,-200.0,0.00011822,2]
[421627128,1777993843000,-200.0,0.00011822,2]
[421627129,1777993843000,-200.0,0.00011822,2]
[421627137,1777993843000,-161.56332863,0.00011959,2]
[421627124,1777993843000,-200.0,0.00011822,2]
[421627136,1777993843000,-160.0,0.00011959,2]
[421627139,1777993843000,-172.92,0.00011997,2]
[421627135,1777993843000,-160.0,0.00011959,2]
[421627127,1777993843000,-200.0,0.00011822,2]
[421627118,1777993843000,-2060.01435833,0.00011669,2]
[421627119,1777993843000,-595.01435077,0.00011759,2]
[421627121,1777993843000,-738.95677558,0.00011759,2]
[421627122,1777993843000,-652.79808172,0.00011785,2]
[421627117,1777993843000,-655.42658917,0.00011669,2]
[421627120,1777993843000,-184.92411801,0.00011759,2]
[421627138,1777993843000,-160.0,0.00011959,2]
[421627134,1777993843000,-1782.36072214,0.000119,2]
[421627143,1777993846000,-435.19872115,0.00011785,2]
[421627145,1777993846000,-11332.74276539,0.00012,2]
[421627146,1777993846000,-6987.01596779,0.00012,2]
[421627144,1777993846000,-1234.38003103,0.00012,2]
[421627190,1777994622000,1444.0,0.00020329,120]
[421627281,1777995032000,-5000.0,8.875e-05,2]
[421627358,1777995038000,-300.0,0.00010962,2]
[421627356,1777995038000,-300.0,0.00010962,2]
[421627354,1777995038000,-300.0,0.00010962,2]
[421627352,1777995038000,-300.0,0.00010962,2]
[421627350,1777995038000,-300.0,0.00010962,2]
[421627348,1777995038000,-15539.8,0.00010962,2]
[421627351,1777995038000,-300.0,0.00010962,2]
[421627359,1777995038000,-300.0,0.00010962,2]
[421627349,1777995038000,-300.0,0.00010962,2]
[421627353,1777995038000,-300.0,0.00010962,2]
[421627345,1777995038000,-210.1036334,0.00010011,2]
[421627344,1777995038000,-1200.0,0.0001001,2]
[421627343,1777995038000,-200.85,9.62e-05,7]
[421627346,1777995038000,-300.0,0.00010744,2]
[421627341,1777995038000,-399.89825291,9.102e-05,2]
[421627340,1777995038000,-1970.8690634,8.965e-05,2]
[421627342,1777995038000,-200.0,9.62e-05,2]
[421627360,1777995038000,-300.0,0.00010962,2]
[421627355,1777995038000,-300.0,0.00010962,2]
[421627347,1777995038000,-300.0,0.00010961,2]
[421627362,1777995038000,-300.0,0.00010962,2]
[421627376,1777995038000,-200.0,0.00011824,2]
[421627379,1777995038000,-8540.47415794,0.000119,2]
[421627374,1777995038000,-200.0,0.00011824,2]
[421627378,1777995038000,-8170.64840586,0.000119,2]
[421627377,1777995038000,-200.0,0.00011824,2]
[421627368,1777995038000,-4261.89133579,0.00011722,2]
[421627371,1777995038000,-200.0,0.00011824,2]
[421627369,1777995038000,-290.13248076,0.0001176,2]
[421627375,1777995038000,-200.0,0.00011824,2]
[421627367,1777995038000,-2397.31387638,0.0001168,2]
[421627370,1777995038000,-4232.96677022,0.00011809,2]
[421627361,1777995038000,-300.0,0.00010962,2]
[421627373,1777995038000,-200.0,0.00011824,2]
[421627363,1777995038000,-300.0,0.00010962,2]
[421627372,1777995038000,-200.0,0.00011824,2]
[421627365,1777995038000,-266.36820849,0.0001168,2]
[421627366,1777995038000,-1065.47283395,0.0001168,2]
[421627364,1777995038000,-471.87993844,0.00011102,2]
[421627357,1777995038000,-300.0,0.00010962,2]
[421628021,1777995046000,-500.0,0.00011862,2]
[421628022,1777995046000,-98.32403818,0.00011862,2]
[421628018,1777995046000,-152.0,0.00011419,7]
[421628020,1777995046000,-193.42165384,0.0001176,2]
[421628019,1777995046000,-4924.84253217,0.00011642,2]
[421628023,1777995047000,-401.67596182,0.00011862,2]
[421628024,1777995047000,-500.0,0.00011862,2]
[421628025,1777995047000,-246.04298832,0.00011862,2]
[421628026,1777995047000,-47815.73633636,0.000119,2]
[421628027,1777995047000,-40088.58025935,0.000119,2]
[421628029,1777995051000,5000.0,0.0001,2]
[421628031,1777995053000,73392.1652436,7.6e-05,2]
[421628030,1777995053000,10142.43977591,7.6e-05,2]
[421628049,1777995404000,1444.0,0.00020329,120]
[421628108,1777996186000,1444.0,0.00020329,120]
[421628299,1777996234000,-3444.85097968,8.13e-05,2]
[421628301,1777996234000,-133.88825072,8.13e-05,2]
[421628300,1777996234000,-1421.2607696,8.13e-05,2]
[421628304,1777996234000,-679.45363298,8.295e-05,2]
[421628303,1777996234000,-777.70103543,8.295e-05,2]
[421628302,1777996234000,-438.05624803,8.212e-05,2]
[421628315,1777996238000,-393.32521202,8.549e-05,2]
[421628324,1777996238000,-300.0,9.13e-05,2]
[421628327,1777996238000,-300.0,9.13e-05,2]
[421628322,1777996238000,-300.0,9.13e-05,2]
[421628314,1777996238000,-1100.0,8.5e-05,7]
[421628313,1777996238000,-3467.68786376,8.295e-05,2]
[421628318,1777996238000,-300.0,9.13e-05,2]
[421628319,1777996238000,-300.0,9.13e-05,2]
[421628320,1777996238000,-300.0,9.13e-05,2]
[421628317,1777996238000,-300.0,9.13e-05,2]
[421628316,1777996238000,-300.0,9.129e-05,2]
[421628326,1777996238000,-300.0,9.13e-05,2]
[421628329,1777996238000,-300.0,9.13e-05,2]
[421628321,1777996238000,-300.0,9.13e-05,2]
[421628325,1777996238000,-300.0,9.13e-05,2]
[421628341,1777996238000,-500.0,0.00011623,2]
[421628340,1777996238000,-500.0,0.00011623,2]
[421628339,1777996238000,-292.32881466,0.00011623,2]
[421628338,1777996238000,-500.0,0.00011623,2]
[421628337,1777996238000,-552.38260776,0.00011623,2]
[421628336,1777996238000,-500.0,0.00011623,2]
[421628328,1777996238000,-300.0,9.13e-05,2]
[421628332,1777996238000,-464.12375018,0.00010549,2]
[421628334,1777996238000,-500.0,0.00011623,2]
[421628333,1777996238000,-15000.0,0.00010959,2]
[421628330,1777996238000,-300.0,9.13e-05,2]
[421628331,1777996238000,-300.0,9.13e-05,2]
[421628323,1777996238000,-300.0,9.13e-05,2]
[421628335,1777996238000,-500.0,0.00011623,2]
[421628359,1777996239000,-200.0,0.00011829,2]
[421628362,1777996239000,-200.0,0.00011842,2]
[421628363,1777996239000,-500.0,0.0001185,2]
[421628366,1777996239000,-500.0,0.00011907,2]
[421628367,1777996239000,-500.0,0.00011907,2]
[421628364,1777996239000,-500.0,0.00011907,2]
[421628370,1777996239000,-351.07176955,0.00011907,2]
[421628368,1777996239000,-500.0,0.00011907,2]
[421628369,1777996239000,-500.0,0.00011907,2]
[421628371,1777996239000,-578.34571551,0.00011907,2]
[421628376,1777996239000,-500.0,0.00011907,2]
[421628372,1777996239000,-500.0,0.00011907,2]
[421628361,1777996239000,-176.07,0.00011842,2]
[421628365,1777996239000,-543.9661527,0.00011907,2]
[421628360,1777996239000,-200.0,0.00011829,2]
[421628356,1777996239000,-200.0,0.00011829,2]
[421628357,1777996239000,-200.0,0.00011829,2]
[421628346,1777996239000,-2585.54467549,0.00011624,2]
[421628343,1777996239000,-434.73953274,0.00011623,2]
[421628344,1777996239000,-177.90265854,0.00011623,2]
[421628345,1777996239000,-87071.93066278,0.00011624,2]
[421628342,1777996239000,-505.6939818,0.00011623,2]
[421628347,1777996239000,-26067.2705845,0.00011676,2]
[421628349,1777996239000,-193.42165384,0.0001176,2]
[421628351,1777996239000,-30901.92408162,0.00011809,2]
[421628350,1777996239000,-184.42,0.00011789,2]
[421628348,1777996239000,-2775.09864226,0.00011712,2]
[421628378,1777996239000,-500.0,0.00011907,2]
[421628352,1777996239000,-484697.01419102,0.00011809,2]
[421628354,1777996239000,-9579.66625002,0.00011822,2]
[421628355,1777996239000,-200.0,0.00011829,2]
[421628353,1777996239000,-6659.20521217,0.00011822,2]
[421628358,1777996239000,-200.0,0.00011829,2]
[421628377,1777996239000,-500.0,0.00011907,2]
[421628373,1777996239000,-500.0,0.00011907,2]
[421628375,1777996239000,-500.0,0.00011907,2]